bitfinex-derivatives/quotes_SOLF0:USTF0_20250923
["timestamp","ask_amount","ask_price","bid_price","bid_amount"]
[1758613177047,10.75723378,219.2,219.11,7.45]
[1758613177247,6.96057898,219.19,219.11,7.45]
[1758613177455,3.26628655,219.18,219.11,7.45]
[1758613177653,3.26628655,219.17,219.11,7.45]
[1758613177856,3.26636162,219.16,219.11,7.45]
[1758613178157,0.79440266,219.21,219.11,7.45]
[1758613178456,10.7588972,219.2,219.11,7.45]
[1758613178646,6.96217809,219.19,219.11,7.45]
[1758613178845,6.96225136,219.18,219.11,7.45]
[1758613179054,3.2678102,219.17,219.11,7.45]
[1758613179249,3.2678102,219.16,219.11,7.45]
[1758613179448,4.89730266,219.21,219.11,7.45]
[1758613179648,10.75912746,219.2,219.11,7.45]
[1758613179854,6.96233663,219.19,219.11,7.45]
[1758613180041,6.96233663,219.18,219.11,7.45]
[1758613180246,3.2678858,219.17,219.11,7.45]
[1758613180447,3.2678858,219.16,219.11,7.45]
[1758613180647,3.26800704,219.15,219.08,7.45]
[1758613180848,3.26800704,219.14,219.08,7.45]
[1758613181052,4.103,219.2,219.09,7.45]
[1758613181248,10.76001922,219.19,219.09,7.45]
[1758613181556,14.86331922,219.18,219.09,7.45]
[1758613181751,6.963027,219.17,219.09,7.45]
[1758613181950,3.26832187,219.16,219.09,7.45]
[1758613182149,3.26832187,219.15,219.09,7.45]
[1758613182350,4.1033,219.18,219.09,7.45]
[1758613182550,6.96338707,219.17,219.09,7.45]
[1758613182748,3.26837072,219.16,219.09,7.45]
[1758613182946,3.26837072,219.15,219.09,7.45]
[1758613183152,4.1033,219.18,219.09,7.45]
[1758613183356,3.26809167,219.17,219.09,7.45]
[1758613183550,3.26809167,219.16,219.09,7.45]
[1758613183748,3.26809167,219.15,219.09,7.45]
[1758613183948,4.1033,219.18,219.09,7.45]
[1758613184149,6.97879234,219.17,219.09,7.45]
[1758613184356,3.26814258,219.16,219.09,7.45]
[1758613184566,3.26814258,219.15,219.09,7.45]
[1758613184867,4.1033,219.18,219.09,7.45]
[1758613185066,6.98035712,219.17,219.09,7.45]
[1758613185268,3.26937766,219.16,219.09,7.45]
[1758613185468,3.26937766,219.15,219.09,7.45]
[1758613185768,4.1033,219.18,219.09,7.45]
[1758613185969,4.1036,219.16,219.09,7.45]
[1758613186161,3.26966788,219.15,219.09,7.45]
[1758613189172,3.7146318,219.14,219.09,7.45]
[1758613189373,3.26966788,219.13,219.09,7.45]
[1758613189572,3.26966788,219.12,219.09,7.45]
[1758613189777,4.1036,219.16,219.09,7.45]
[1758613189974,6.98675603,219.15,219.09,7.45]
[1758613190174,6.98675603,219.14,219.06,7.45]
[1758613190473,3.27240047,219.13,219.06,7.45]
[1758613190672,3.27240047,219.12,219.06,7.45]
[1758613190969,4.1036,219.16,219.06,7.45]
[1758613191273,10.79184,219.15,219.06,7.45]
[1758613191474,6.98833725,219.14,219.07,7.45]
[1758613191673,3.27314455,219.13,219.07,7.45]
[1758613191862,3.27314455,219.12,219.06,4.1053]
[1758613192069,4.1036,219.16,219.07,7.45]
[1758613192274,10.79424724,219.15,219.07,7.45]
[1758613192576,6.98971759,219.14,219.07,7.45]
[1758613192875,3.27381502,219.13,219.07,7.45]
[1758613193176,3.27381502,219.12,219.06,4.1053]
[1758613193373,3.27575261,219.11,219.07,7.45]
[1758613193573,4.1036,219.16,219.07,7.45]
[1758613193773,10.7994449,219.15,219.07,7.45]
[1758613193975,6.99374826,219.14,219.07,7.45]
[1758613194276,6.99374826,219.13,219.07,7.45]
[1758613194474,3.27575443,219.12,219.07,7.45]
[1758613194673,4.1036,219.16,219.07,7.45]
[1758613194674,3.27575443,219.11,219.07,7.45]
[1758613194872,4.1036,219.16,219.07,7.45]
[1758613195072,10.80288557,219.15,219.07,7.45]
[1758613195276,10.80368435,219.14,219.07,7.45]
[1758613195477,6.99585651,219.13,219.07,7.45]
[1758613195679,3.2765566,219.12,219.07,7.45]
[1758613195878,3.2765566,219.11,219.06,4.1053]
[1758613196181,4.1036,219.16,219.07,7.45]
[1758613196370,10.80551999,219.15,219.07,7.45]
[1758613196574,10.80551999,219.14,219.07,7.45]
[1758613196771,6.99745865,219.13,219.07,7.45]
[1758613196974,6.99745865,219.12,219.07,7.45]
[1758613197175,3.27714414,219.11,219.07,7.45]
[1758613197382,3.27714414,219.1,219.06,4.1053]
[1758613197581,4.104,219.15,219.07,7.45]
[1758613197785,10.80659442,219.14,219.07,7.45]
[1758613197983,6.9983122,219.13,219.07,7.45]
[1758613198173,6.9983122,219.12,219.06,4.1053]
[1758613198377,3.27776873,219.11,219.07,7.45]
[1758613198577,3.27776873,219.1,219.07,7.45]
[1758613198777,4.104,219.15,219.07,7.45]
[1758613198978,3.27831202,219.14,219.07,7.45]
[1758613199285,3.27831202,219.13,219.07,7.45]
[1758613199474,6.99946931,219.12,219.07,7.45]
[1758613199680,3.27831202,219.11,219.06,4.1053]
[1758613199876,3.27831202,219.1,219.06,4.1053]
[1758613200183,4.104,219.15,219.07,7.45]
[1758613200378,10.80844568,219.14,219.07,4.1052]
[1758613200573,6.999532,219.13,219.07,4.1052]
[1758613200779,6.999532,219.12,219.07,4.1052]
[1758613200973,3.27837142,219.11,219.08,7.67]
[1758613201175,4.104,219.15,219.08,7.67]
[1758613201384,10.86594435,219.14,219.08,7.67]
[1758613201573,10.86581085,219.13,219.07,11.7752]
[1758613201778,5.09926226,219.18,219.05,7.67]
[1758613201779,6.99957972,219.12,219.05,7.67]
[1758613201981,66.81291778,219.16,219.05,7.67]
[1758613201982,6.99957972,219.11,219.05,7.67]
[1758613202182,3.27838957,219.1,219.05,7.67]
[1758613202386,3.27838957,219.09,219.05,7.67]
[1758613202684,66.81291778,219.16,219.03,7.67]
[1758613202885,4.1042,219.14,219.03,7.67]
[1758613203082,10.86805082,219.13,219.03,7.67]
[1758613203384,10.86805082,219.12,219.03,7.67]
[1758613203682,10.86807911,219.11,219.03,7.67]
[1758613203884,7.00101732,219.1,219.04,4.1057]
[1758613204084,3.27906283,219.09,219.03,7.67]
[1758613204283,3.27906283,219.08,219.01,7.67]
[1758613204486,4.1045,219.12,219.01,7.67]
[1758613204685,10.86771552,219.11,219.01,7.67]
[1758613204883,7.00076492,219.1,219.01,7.67]
[1758613205186,5.09926226,219.19,219.1,7.67]
[1758613205387,3.72208481,219.18,219.1,7.67]
[1758613205678,3.72208481,219.18,219.09,2.97711778]
[1758613205679,63.8147,219.23,219.11,7.67]
[1758613205886,68.92036226,219.21,219.11,7.67]
[1758613206081,3.61270232,219.2,219.11,7.67]
[1758613206390,4.1035,219.17,219.11,7.67]
[1758613206574,3.61270232,219.16,219.08,4.1051]
[1758613206773,4.1035,219.17,219.09,7.67]
[1758613207080,3.59053255,219.16,219.09,7.67]
[1758613207275,3.59138492,219.15,219.09,7.67]
[1758613207483,4.1038,219.16,219.09,7.67]
[1758613207688,68.92656226,219.19,219.05,7.67]
[1758613207880,9.08283014,219.18,219.05,7.67]
[1758613208188,4.104,219.14,219.05,7.67]
[1758613208485,3.98356788,219.13,219.05,7.67]
[1758613211477,3.98356788,219.12,219.05,7.67]
[1758613211673,5.09926226,219.19,219.09,4.1049]
[1758613211886,3.98404447,219.18,219.1,7.67]
[1758613212085,3.98404447,219.17,219.1,7.67]
[1758613212386,4.1033,219.19,219.1,7.67]
[1758613212584,3.72492811,219.18,219.1,7.67]
[1758613212780,3.72492811,219.17,219.1,7.67]
[1758613217089,3.26137308,219.16,219.1,7.67]
[1758613217277,3.26137308,219.15,219.09,4.1049]
[1758613217478,3.26137308,219.14,219.1,7.25]
[1758613217678,3.26137308,219.13,219.1,7.25]
[1758613217878,3.26137308,219.12,219.09,4.1049]
[1758613218090,4.1034,219.18,219.1,7.25]
[1758613218387,6.9876866,219.17,219.1,7.25]
[1758613218588,6.9876866,219.16,219.1,7.25]
[1758613218784,6.9876866,219.16,219.09,7.25]
[1758613218785,3.26262344,219.15,219.09,7.25]
[1758613218988,3.26262344,219.14,219.07,7.25]
[1758613219286,3.26262344,219.13,219.07,7.25]
[1758613219491,3.26262344,219.13,219.04,2.97711778]
[1758613219492,3.26262344,219.12,219.05,7.25]
[1758613219679,0.744731,219.15,219.05,7.25]
[1758613219879,3.26267922,219.14,219.05,7.25]
[1758613220088,3.26267922,219.13,219.05,7.25]
[1758613220291,3.26267922,219.12,219.06,7.25]
[1758613220479,3.26267922,219.11,219.06,7.25]
[1758613220684,0.744731,219.15,219.06,7.25]
[1758613220978,3.26403533,219.14,219.06,7.25]
[1758613221179,3.26403533,219.13,219.06,7.25]
[1758613221388,3.26403533,219.12,219.06,7.25]
[1758613221590,3.26403533,219.11,219.06,7.25]
[1758613221781,0.744731,219.15,219.09,4.1049]
[1758613222086,3.26442517,219.14,219.05,7.25]
[1758613222289,3.26442517,219.13,219.05,7.25]
[1758613222590,3.26442517,219.12,219.05,7.25]
[1758613222791,3.26442517,219.11,219.05,7.25]
[1758613223087,3.26442517,219.1,219.02,7.25]
[1758613223390,3.26597021,219.09,219.02,7.25]
[1758613223683,0.744731,219.15,219.02,7.25]
[1758613223892,11.09898379,219.14,219.06,7.25]
[1758613224189,6.9947657,219.13,219.06,7.25]
[1758613224393,3.26597102,219.12,219.06,7.25]
[1758613224683,3.26597102,219.11,219.05,4.1057]
[1758613224888,3.26597102,219.1,219.05,4.1057]
[1758613225190,3.26597102,219.09,219.05,4.1057]
[1758613225392,4.1042,219.14,219.06,7.25]
[1758613225586,10.61192668,219.13,219.06,7.25]
[1758613225784,3.26515953,219.12,219.06,7.25]
[1758613225984,3.26515953,219.11,219.05,4.1057]
[1758613226187,3.26515953,219.1,219.06,7.25]
[1758613226386,3.26515953,219.09,219.05,4.1057]
[1758613226587,4.1042,219.14,219.06,7.25]
[1758613226790,3.2648156,219.13,219.06,7.25]
[1758613227088,3.2648156,219.12,219.06,7.25]
[1758613227286,3.2648156,219.11,219.05,4.1057]
[1758613227490,3.2648156,219.1,219.05,4.1057]
[1758613227684,3.2648156,219.09,219.05,4.1057]
[1758613227883,3.26468249,219.08,219.06,7.25]
[1758613228084,4.1042,219.14,219.06,7.25]
[1758613228287,3.26470731,219.13,219.06,7.25]
[1758613228489,6.88330339,219.12,219.06,7.25]
[1758613228683,6.88329897,219.11,219.05,4.1057]
[1758613228990,3.26470731,219.1,219.05,4.1057]
[1758613229185,3.26470731,219.09,219.06,7.25]
[1758613229391,4.1042,219.14,219.06,7.25]
[1758613229695,10.6107509,219.13,219.06,7.25]
[1758613229884,10.6107509,219.12,219.06,7.25]
[1758613230085,6.8832964,219.11,219.06,7.25]
[1758613230286,3.2647604,219.1,219.06,7.25]
[1758613230587,6.88300134,219.09,218.98,7.25]
[1758613230787,6.88300134,219.08,218.98,7.25]
[1758613230991,3.2647604,219.07,218.98,7.25]
[1758613231191,3.2647604,219.06,218.98,7.25]
[1758613231391,3.2647604,219.05,218.98,7.25]
[1758613231585,4.1048,219.1,218.98,7.25]
[1758613231781,4.1048,219.1,218.97,164.55177419]
[1758613231782,10.93120035,219.09,219.0,4.1065]
[1758613231989,10.93120035,219.08,219.01,7.47]
[1758613232190,7.31422865,219.07,219.01,7.47]
[1758613232491,3.26347604,219.06,219.01,7.47]
[1758613232685,3.26347604,219.05,219.0,4.1065]
[1758613232887,4.1048,219.1,219.01,7.47]
[1758613233090,10.9283986,219.09,219.01,7.47]
[1758613233279,7.31237246,219.08,219.01,7.47]
[1758613233484,7.31237246,219.07,219.01,11.5763]
[1758613233688,3.26270078,219.06,219.02,7.47]
[1758613233882,2.97711778,219.12,219.02,7.47]
[1758613234087,10.92601864,219.11,219.04,7.47]
[1758613234290,10.92601864,219.1,219.04,7.47]
[1758613234489,7.31079608,219.09,219.04,7.47]
[1758613234683,3.26202373,219.08,219.03,4.106]
[1758613234886,3.26202373,219.07,219.04,7.47]
[1758613235092,8.07638004,219.14,219.01,7.47]
[1758613235291,10.70784432,219.13,219.01,7.47]
[1758613235490,4.1048,219.1,219.01,7.47]
[1758613235796,10.70784432,219.09,219.01,7.47]
[1758613236090,4.1048,219.1,219.01,7.47]
[1758613236091,3.26220669,219.08,219.01,7.47]
[1758613236290,3.26220669,219.07,219.01,7.47]
[1758613236494,3.26220669,219.06,218.98,7.47]
[1758613236796,4.1048,219.1,219.01,4.1063]
[1758613236983,10.70401988,219.09,219.02,7.47]
[1758613237188,3.26132282,219.08,219.02,7.47]
[1758613237388,3.26132282,219.07,219.01,4.1063]
[1758613237686,3.26132282,219.06,219.01,4.1063]
[1758613237890,4.1048,219.1,219.02,7.47]
[1758613238093,10.70844655,219.09,219.02,7.47]
[1758613238289,3.26749507,219.08,219.02,7.47]
[1758613238485,3.26749507,219.07,219.01,4.1063]
[1758613238690,3.26749507,219.06,219.01,4.1063]
[1758613238895,1.90708081,219.09,219.02,7.47]
[1758613239095,3.26701538,219.08,219.02,7.47]
[1758613239396,3.26701538,219.07,219.02,7.47]
[1758613239591,3.26701538,219.06,219.01,4.1063]
[1758613239791,1.90708081,219.09,219.02,7.47]
[1758613239991,3.2666531,219.08,219.02,7.47]
[1758613240194,0.744731,219.15,219.06,4.1055]
[1758613240389,0.744731,219.15,219.07,7.47]
[1758613240390,12.61324722,219.14,219.07,7.47]
[1758613240597,10.70616641,219.13,219.07,7.47]
[1758613240798,10.70616641,219.12,219.06,4.1055]
[1758613241090,3.26675215,219.11,219.07,7.47]
[1758613241298,0.744731,219.15,219.09,7.47]
[1758613241299,3.26675215,219.1,219.09,7.47]
[1758613241598,0.744731,219.15,219.1,7.47]
[1758613242396,0.744731,219.15,219.09,1.90708081]
[1758613242695,0.744731,219.15,219.13,7.47]
[1758613243400,0.744731,219.15,219.12,1.90708081]
[1758613244298,3.1e-05,219.15,219.13,4.1041]
[1758613244603,0.86,219.25,219.14,7.47]
[1758613244798,3.64782676,219.24,219.17,7.47]
[1758613244997,3.64782676,219.23,219.17,7.47]
[1758613245198,1.90708081,219.26,219.17,7.47]
[1758613245402,3.64566938,219.25,219.17,7.47]
[1758613245699,1.90708081,219.26,219.17,7.47]
[1758613245895,3.64555935,219.25,219.17,7.47]
[1758613246098,1.90708081,219.26,219.17,7.47]
[1758613246805,1.90708081,219.26,219.18,4.1032]
[1758613247304,1.90708081,219.26,219.19,7.47]
[1758613247598,4.50200414,219.25,219.19,7.47]
[1758613247902,0.86,219.25,219.19,7.47]
[1758613248102,4.962,219.25,219.15,4.1037]
[1758613248302,1.90708081,219.24,219.15,11.5737]
[1758613249410,0.86,219.23,219.15,7.47]
[1758613251206,1.90708081,219.22,219.15,7.47]
[1758613253600,1.90708081,219.19,219.1,7.47]
[1758613253806,3.24033192,219.18,219.1,7.47]
[1758613254000,1.90708081,219.19,219.1,7.47]
[1758613254001,1.90708081,219.19,219.11,1.90708081]
[1758613254210,1.90708081,219.19,219.12,7.47]
[1758613255313,3.24014249,219.18,219.12,7.47]
[1758613255612,2.76708081,219.19,219.12,7.47]
[1758613255804,1.90708081,219.16,219.12,7.47]
[1758613256111,2.76708081,219.16,219.12,7.47]
[1758613256406,63.8157,219.23,219.04,63.8697]
[1758613256407,1.90708081,219.13,219.05,7.47]
[1758613256609,1.90708081,219.14,219.05,9.37708081]
[1758613257505,3.24026955,219.13,219.05,9.37708081]
[1758613257704,1.90708081,219.14,219.05,9.37708081]
[1758613257905,3.24033393,219.13,219.05,9.37708081]
[1758613258107,1.90708081,219.14,219.05,9.37708081]
[1758613258302,3.24038132,219.13,219.05,9.37708081]
[1758613258607,1.90708081,219.14,219.05,9.37708081]
[1758613258807,7.34458512,219.13,219.05,7.47]
[1758613259011,4.1042,219.13,219.05,7.47]
[1758613259212,3.24105159,219.12,219.05,7.47]
[1758613259417,4.1042,219.13,219.05,7.47]
[1758613259608,3.24098213,219.12,219.05,7.47]
[1758613259809,4.1042,219.13,219.05,7.47]
[1758613260615,3.24088576,219.12,219.05,7.47]
[1758613260914,4.1042,219.13,219.05,7.47]
[1758613261118,1.90708081,219.11,219.05,7.47]
[1758613261417,0.87,219.06,218.98,7.3]
[1758613261608,1.90708081,219.05,218.98,7.3]
[1758613263912,4.9755,219.06,218.98,7.3]
[1758613264215,1.90708081,219.05,218.98,7.3]
[1758613264715,1.90708081,219.02,218.98,7.3]
[1758613264914,2.77708081,219.02,218.94,7.3]
[1758613265219,1.90708081,218.99,218.9,7.3]
[1758613265914,1.90708081,218.99,218.91,7.3]
[1758613266515,1.90708081,218.99,218.91,11.4082]
[1758613266812,1.90708081,218.99,218.92,7.3]
[1758613267213,1.90708081,218.99,218.93,4.1079]
[1758613267717,1.90708081,218.99,218.92,7.3]
[1758613268120,0.87,219.01,218.92,9.20708081]
[1758613268420,0.87,219.01,218.92,13.31518081]
[1758613269116,1.90708081,219.0,218.92,11.4081]
[1758613269521,1.90708081,218.98,218.92,7.3]
[1758613270121,0.87,219.01,218.79,125.9406]
[1758613270122,1.90708081,218.95,218.86,7.3]
[1758613270421,0.87,218.94,218.86,7.3]
[1758613270616,1.90708081,218.92,218.86,7.3]
[1758613272218,0.87,218.94,218.86,7.3]
[1758613272514,1.90708081,218.93,218.86,7.3]
[1758613273624,1.90708081,218.91,218.84,7.3]
[1758613274019,1.90708081,218.91,218.85,4.1094]
[1758613275514,1.90708081,218.91,218.79,63.9406]
[1758613275515,4.1078,218.94,218.72,63.963]
[1758613275713,1.90708081,218.89,218.81,7.3]
[1758613275919,1.90708081,218.91,218.83,7.3]
[1758613276721,0.87,218.93,218.83,7.3]
[1758613276926,1.90708081,218.95,218.87,7.07]
[1758613277118,1.90708081,218.97,218.89,7.07]
[1758613278234,1.90708081,218.99,218.9,1.90708081]
[1758613278522,1.90708081,218.99,218.91,7.07]
[1758613279427,1.90708081,218.99,218.93,7.07]
[1758613282531,1.90708081,219.02,218.95,7.07]
[1758613282932,65.95292785,219.04,218.95,8.97708081]
[1758613283128,65.95292785,219.04,218.96,7.07]
[1758613283926,65.95292785,219.04,218.96,11.1773]
[1758613284327,0.88,219.06,218.98,4.107]
[1758613284526,1.90708081,219.08,218.99,7.07]
[1758613286433,0.88,219.1,219.02,7.07]
[1758613286633,1.90708081,219.12,219.02,7.07]
[1758613286833,0.88,219.14,219.05,7.07]
[1758613287734,4.9833,219.18,219.08,7.07]
[1758613289439,0.88,219.18,219.1,1.90708081]
[1758613289740,0.88,219.18,219.11,7.07]
[1758613289929,1.90708081,219.23,219.11,7.07]
[1758613290235,4.1028,219.21,219.13,1.90708081]
[1758613290435,0.88,219.21,219.14,7.07]
[1758613291435,0.86,219.25,219.16,1.90708081]
[1758613291636,3.20641627,219.24,219.17,7.03]
[1758613291833,0.86,219.25,219.17,7.03]
[1758613292040,3.20641627,219.24,219.17,7.03]
[1758613292239,0.86,219.25,219.17,7.03]
[1758613294939,4.1022,219.24,219.17,7.03]
[1758613295139,3.20876756,219.23,219.03,63.8724]
[1758613295344,2.76708081,219.22,219.13,7.03]
[1758613296031,4.103,219.2,219.13,7.03]
[1758613299239,0.86,219.19,219.13,7.03]
[1758613300639,4.1033,219.18,219.09,7.03]
[1758613302542,0.86,219.16,219.02,7.03]
[1758613303449,63.819,219.22,219.05,10.00674582]
[1758613303747,7.60361248,219.21,219.06,7.03]
[1758613303947,3.21046205,219.2,219.06,7.03]
[1758613304147,3.21046205,219.19,219.06,7.03]
[1758613304340,3.21046205,219.18,219.06,7.03]
[1758613304537,63.8266,219.19,219.09,7.03]
[1758613304737,4.06973677,219.18,219.09,7.03]
[1758613304947,3.20973677,219.17,219.09,7.03]
[1758613305651,0.86,219.14,219.05,7.03]
[1758613306652,0.86,219.12,219.05,7.03]
[1758613307150,4.1049,219.1,219.01,7.03]
[1758613311145,4.1052,219.08,219.01,7.03]
[1758613311649,0.86,219.06,218.95,7.03]
[1758613312243,4.106,219.04,218.95,7.03]
[1758613313954,0.86,219.06,218.95,7.03]
[1758613314849,0.86,219.04,218.95,7.03]
[1758613315240,4.1065,219.01,218.95,7.03]
[1758613315458,4.9665,219.01,218.91,7.03]
[1758613316253,0.86,219.01,218.91,7.03]
[1758613316558,4.106,219.04,218.91,7.03]
[1758613317850,4.106,219.04,218.93,7.03]
[1758613319252,4.966,219.04,218.93,7.03]
[1758613323154,4.966,219.04,218.94,4.1078]
[1758613323458,4.966,219.04,218.95,7.19]
[1758613324457,4.1063,219.02,218.95,7.19]
[1758613326059,0.87,219.03,218.91,7.19]
[1758613326261,0.87,219.02,218.91,7.19]
[1758613326456,4.1067,219.0,218.91,7.19]
[1758613327465,4.1071,218.98,218.91,7.19]
[1758613327759,0.87,219.02,218.91,7.19]
[1758613327964,7.32057878,219.01,218.91,7.19]
[1758613328165,0.87,219.07,218.91,7.19]
[1758613328367,5.09926226,219.11,218.91,7.19]
[1758613328368,4.1063,219.02,218.91,11.2982]
[1758613328561,4.9763,219.02,218.92,7.19]
[1758613328762,3.21408997,219.01,218.92,7.19]
[1758613328962,0.87,219.02,218.92,7.19]
[1758613329263,3.21412771,219.01,218.92,7.19]
[1758613329464,0.87,219.02,218.92,7.19]
[1758613329667,3.21372837,219.01,218.92,7.19]
[1758613329962,0.87,219.02,218.92,7.19]
[1758613329963,4.1067,219.0,218.92,7.19]
[1758613330157,0.87,219.02,218.93,4.108]
[1758613330466,0.87,219.02,218.94,7.19]
[1758613331067,4.1057,219.06,218.95,7.19]
[1758613331269,3.21339939,219.05,218.95,7.19]
[1758613331466,3.21339939,219.04,218.95,7.19]
[1758613331671,4.1057,219.06,218.95,7.19]
[1758613331866,3.21299157,219.05,218.97,7.19]
[1758613332071,3.21299157,219.04,218.97,7.19]
[1758613332272,4.1057,219.06,218.97,7.19]
[1758613333363,0.87,219.08,218.97,7.19]
[1758613333569,0.87,219.12,219.0,7.19]
[1758613333770,3.21245953,219.11,219.0,7.19]
[1758613334075,7.31725953,219.1,219.0,11.2966]
[1758613334266,3.21245953,219.09,219.0,11.2966]
[1758613334670,3.21245953,219.09,219.02,4.1062]
[1758613334876,0.87,219.12,219.03,7.19]
[1758613335075,3.21241021,219.11,219.03,7.19]
[1758613335374,3.21241021,219.1,219.03,7.19]
[1758613335576,0.87,219.12,219.03,7.19]
[1758613335777,7.31743997,219.11,219.03,7.19]
[1758613335977,3.21283997,219.1,219.03,7.19]
[1758613336273,3.58227785,219.15,219.03,7.19]
[1758613336471,4.0834141,219.14,219.03,7.19]
[1758613336671,4.1044,219.12,219.03,7.19]
[1758613336974,3.2134141,219.11,219.03,7.19]
[1758613338483,4.9648,219.1,219.03,7.19]
[1758613338778,3.2134141,219.09,219.03,7.19]
[1758613339480,4.9648,219.1,219.03,7.19]
[1758613339673,4.9652,219.08,218.96,7.72]
[1758613339875,3.21778557,219.07,218.96,7.72]
[1758613340076,4.9652,219.08,218.96,7.72]
[1758613340277,4.1056,219.06,218.96,7.72]
[1758613341077,4.106,219.04,218.96,7.72]
[1758613341277,0.86,219.05,218.96,7.72]
[1758613341483,3.21973158,219.04,218.96,7.72]
[1758613341678,3.21973158,219.03,218.96,7.72]
[1758613341982,0.86,219.05,218.96,7.72]
[1758613342179,3.21898286,219.04,218.96,7.72]
[1758613342381,0.86,219.05,218.96,7.72]
[1758613342382,3.21898286,219.03,218.96,7.72]
[1758613342581,0.86,219.05,218.96,7.72]
[1758613342782,4.1063,219.02,218.96,7.72]
[1758613343282,3.21992815,219.01,218.96,7.72]
[1758613343471,4.9667,219.0,218.96,7.72]
[1758613343677,4.9667,219.0,218.9,7.72]
[1758613343678,0.86,219.0,218.9,7.72]
[1758613344285,7.32762491,218.99,218.9,7.72]
[1758613344484,4.1069,218.99,218.9,7.72]
[1758613346187,4.1069,218.99,218.9,11.8285]
[1758613346387,3.22395145,218.98,218.91,7.72]
[1758613346582,4.1069,218.99,218.91,7.72]
[1758613346887,3.22395143,218.98,218.91,7.72]
[1758613347089,4.1069,218.99,218.91,7.72]
[1758613347285,3.22361975,218.98,218.91,7.72]
[1758613347485,4.1069,218.99,218.91,7.72]
[1758613347685,3.22522354,218.98,218.91,7.72]
[1758613347887,4.1069,218.99,218.91,7.72]
[1758613348190,3.22522363,218.98,218.91,7.72]
[1758613348489,4.1069,218.99,218.91,7.72]
[1758613348788,3.22520556,218.98,218.91,7.72]
[1758613348989,4.1069,218.99,218.91,7.72]
[1758613349191,3.22518705,218.98,218.91,7.72]
[1758613349389,3.22518705,218.97,218.91,7.72]
[1758613349689,4.1069,218.99,218.91,7.72]
[1758613349888,4.1073,218.97,218.91,7.72]
[1758613350092,3.22630863,218.96,218.88,7.72]
[1758613350288,4.1073,218.97,218.88,7.72]
[1758613350489,3.2274841,218.96,218.88,7.72]
[1758613350681,4.1073,218.97,218.88,7.72]
[1758613350889,3.22786347,218.96,218.88,7.72]
[1758613351090,4.1073,218.97,218.88,7.72]
[1758613351292,3.22771911,218.96,218.88,7.72]
[1758613351493,4.1073,218.97,218.88,7.72]
[1758613351693,3.22836161,218.96,218.88,7.72]
[1758613351891,4.1073,218.97,218.88,7.72]
[1758613352094,3.22800826,218.96,218.88,7.72]
[1758613352289,4.1073,218.97,218.88,7.72]
[1758613352491,3.22825383,218.96,218.88,7.72]
[1758613352692,4.1073,218.97,218.88,7.72]
[1758613352891,3.22825383,218.96,218.88,7.72]
[1758613353096,4.1073,218.97,218.88,7.72]
[1758613353298,3.22815476,218.96,218.88,7.72]
[1758613353498,4.1073,218.97,218.88,7.72]
[1758613353799,3.22875997,218.96,218.88,7.72]
[1758613353995,4.1073,218.97,218.88,7.72]
[1758613355395,3.23006381,218.96,218.88,7.72]
[1758613355600,4.1073,218.97,218.88,7.72]
[1758613355898,3.23006381,218.96,218.88,7.72]
[1758613356097,4.1073,218.97,218.88,7.72]